bitfinex-derivatives/quotes_BTCF0:USTF0_20241223
["timestamp","ask_amount","ask_price","bid_price","bid_amount"]
[1734991131280,0.3608,94045.0,94031.0,0.3608]
[1734991131585,0.3608,94045.0,94040.0,0.05324]
[1734991131784,0.3608,94045.0,94036.0,0.053243]
[1734991132087,0.3608,94045.0,94035.0,0.08920004]
[1734991133389,0.3648,94045.0,94035.0,0.08920004]
[1734991133590,0.004,94045.0,94035.0,0.08920004]
[1734991133789,0.3608,94065.0,94044.0,0.053238]
[1734991134085,0.3608,94075.0,94059.0,0.3608]
[1734991134278,0.3608,94075.0,94074.0,0.053221]
[1734991134678,0.3608,94075.0,94065.0,0.08920004]
[1734991134679,0.3608,94086.0,94081.0,0.053217]
[1734991134880,0.3608,94086.0,94083.0,0.053216]
[1734991135184,0.19060342,94088.0,94085.0,0.053215]
[1734991135383,0.19060342,94088.0,94079.0,0.3608]
[1734991135384,0.19060342,94088.0,94086.0,0.053214]
[1734991136283,0.58358654,94103.0,94077.0,0.3608]
[1734991136284,0.3608,94103.0,94077.0,0.3608]
[1734991136487,0.3608,94103.0,94089.0,0.14241204]
[1734991138388,0.001,94099.0,94089.0,0.14241204]
[1734991138990,0.09137465,94100.0,94089.0,0.14241204]
[1734991139493,0.09137465,94100.0,94089.0,0.14341204]
[1734991139787,0.002,94099.0,94089.0,0.14341204]
[1734991140181,0.002,94099.0,94098.0,0.053207]
[1734991140379,0.053195,94120.0,94097.0,0.3608]
[1734991140380,0.37399827,94131.0,94097.0,0.3608]
[1734991140579,0.053191,94128.0,94110.0,0.08920004]
[1734991140779,0.053191,94128.0,94120.0,0.08920004]
[1734991140986,0.5855,94131.0,94120.0,0.08920004]
[1734991141292,0.4749,94131.0,94120.0,0.08920004]
[1734991141688,0.4749,94131.0,94113.0,0.053199]
[1734991141897,0.3608,94122.0,94113.0,0.053199]
[1734991142384,0.4749,94131.0,94113.0,0.053199]
[1734991142585,0.4769,94131.0,94120.0,0.08920004]
[1734991142990,0.05319,94129.0,94120.0,0.08920004]
[1734991143385,0.002,94122.0,94120.0,0.08920004]
[1734991143592,0.002,94122.0,94113.0,0.06611638]
[1734991143794,0.002,94122.0,94120.0,0.001]
[1734991144292,0.002,94122.0,94116.0,0.053197]
[1734991144486,0.002,94122.0,94120.0,0.001]
[1734991144793,0.4749,94131.0,94120.0,0.001]
[1734991144794,0.528089,94131.0,94120.0,0.001]
[1734991144996,0.4749,94131.0,94120.0,0.09020004]
[1734991145595,0.053191,94127.0,94120.0,0.09020004]
[1734991145793,0.3608,94123.0,94120.0,0.001]
[1734991146295,0.3608,94123.0,94110.0,0.08920004]
[1734991146492,0.053195,94121.0,94105.0,0.3608]
[1734991146686,0.053194,94122.0,94120.0,0.001]
[1734991147095,0.053198,94115.0,94105.0,0.3608]
[1734991147389,0.3608,94111.0,94100.0,0.08920004]
[1734991147792,0.414,94111.0,94100.0,0.08920004]
[1734991149097,0.3608,94111.0,94100.0,0.08920004]
[1734991149494,0.3618,94111.0,94100.0,0.08920004]
[1734991149702,0.3618,94111.0,94100.0,0.10228027]
[1734991149999,0.3608,94102.0,94100.0,0.10228027]
[1734991150189,0.3608,94102.0,94100.0,0.01308023]
[1734991150390,0.3608,94102.0,94098.0,0.053207]
[1734991151395,0.3608,94102.0,94092.0,0.053211]
[1734991151989,0.3608,94102.0,94092.0,0.01259981]
[1734991152194,0.3608,94102.0,94072.0,0.1123]
[1734991152195,0.3608,94093.0,94080.0,0.08920004]
[1734991152595,0.3608,94093.0,94084.0,0.053218]
[1734991152795,0.3608,94093.0,94092.0,0.002]
[1734991153297,0.3608,94093.0,94084.0,0.053218]
[1734991153495,0.3608,94093.0,94080.0,0.09620004]
[1734991153697,0.3608,94081.0,94080.0,0.01936357]
[1734991153900,0.3608,94081.0,94080.0,0.01236357]
[1734991154098,0.3608,94081.0,94070.0,0.08920004]
[1734991154297,0.3608,94073.0,94070.0,0.08920004]
[1734991154491,0.3608,94073.0,94063.0,0.08920004]
[1734991155502,0.3608,94073.0,94070.0,0.001]
[1734991156105,0.3608,94073.0,94063.0,0.01920004]
[1734991156305,0.3608,94073.0,94063.0,0.07242904]
[1734991156506,0.3608,94073.0,94063.0,0.06942904]
[1734991156706,0.3618,94073.0,94064.0,0.053228]
[1734991157103,0.3608,94073.0,94066.0,0.053227]
[1734991157408,0.3608,94073.0,94063.0,0.01820004]
[1734991158007,0.3608,94073.0,94063.0,0.02020004]
[1734991158210,0.414024,94073.0,94063.0,0.004]
[1734991158799,0.053227,94068.0,94063.0,0.004]
[1734991158998,0.3608,94073.0,94063.0,0.004]
[1734991159205,0.3608,94073.0,94063.0,0.057229]
[1734991159407,0.1164,94080.0,94063.0,0.004]
[1734991159600,0.1164,94080.0,94071.0,0.053225]
[1734991160109,0.1164,94080.0,94069.0,0.08920004]
[1734991161208,0.1164,94080.0,94069.0,0.01520004]
[1734991161799,0.1184,94080.0,94070.0,0.053225]
[1734991162400,0.1174,94080.0,94069.0,0.01520004]
[1734991163296,0.1174,94080.0,94065.0,0.053228]
[1734991164407,0.1174,94080.0,94065.0,0.24223217]
[1734991165011,0.1164,94080.0,94065.0,0.24323217]
[1734991165216,0.1164,94080.0,94065.0,0.24423217]
[1734991165403,0.169619,94080.0,94065.0,0.24423217]
[1734991165708,0.053223,94073.0,94066.0,0.18900417]
[1734991166113,0.053223,94073.0,94066.0,0.11500417]
[1734991166915,0.053223,94073.0,94066.0,0.001]
[1734991168014,0.3608,94074.0,94066.0,0.001]
[1734991169511,0.3608,94074.0,94064.0,0.053228]
[1734991169815,0.3608,94074.0,94066.0,0.001]
[1734991170316,0.3608,94082.0,94072.0,0.3608]
[1734991170614,0.3608,94082.0,94074.0,0.053222]
[1734991170809,0.053215,94086.0,94074.0,0.053222]
[1734991171206,0.3608,94088.0,94072.0,0.340022]
[1734991171412,0.3608,94088.0,94077.0,0.05322]
[1734991171609,0.002,94082.0,94077.0,0.05322]
[1734991172114,0.3608,94088.0,94077.0,0.05322]
[1734991172412,0.002,94086.0,94080.0,0.053218]
[1734991172716,0.002,94086.0,94078.0,0.05322]
[1734991172909,0.003,94086.0,94078.0,0.05322]
[1734991173510,0.003,94086.0,94079.0,0.053219]
[1734991173812,0.002,94082.0,94079.0,0.053219]
[1734991174319,0.3608,94088.0,94079.0,0.053219]
[1734991174504,0.003,94086.0,94079.0,0.053219]
[1734991174708,0.003,94086.0,94072.0,0.1104]
[1734991175014,0.002,94082.0,94079.0,0.053219]
[1734991175423,0.002,94082.0,94074.0,0.053222]
[1734991175615,0.003,94086.0,94072.0,0.122508]
[1734991175816,0.002,94086.0,94075.0,0.053221]
[1734991176007,0.001,94082.0,94075.0,0.053221]
[1734991176210,0.001,94082.0,94072.0,0.101729]
[1734991176611,0.002,94086.0,94072.0,0.101729]
[1734991176818,0.002,94086.0,94075.0,0.053221]
[1734991177009,0.002,94086.0,94072.0,0.012108]
[1734991177010,0.3608,94079.0,94072.0,0.012108]
[1734991177204,0.3608,94079.0,94060.0,0.08920004]
[1734991177205,0.3608,94079.0,94067.0,0.053226]
[1734991177417,0.3608,94079.0,94070.0,0.255341]
[1734991178613,0.3608,94079.0,94068.0,0.255341]
[1734991179820,0.414019,94079.0,94069.0,0.255341]
[1734991180015,0.415019,94079.0,94069.0,0.255341]
[1734991180816,0.05322,94077.0,94069.0,0.255341]
[1734991181023,0.1098,94076.0,94072.0,0.255341]
[1734991181323,0.1098,94076.0,94072.0,0.181341]
[1734991181513,0.1129,94075.0,94072.0,0.181341]
[1734991182220,0.414023,94073.0,94072.0,0.181341]
[1734991182718,0.414023,94073.0,94066.0,0.31780983]
[1734991182719,0.053226,94067.0,94066.0,0.31780983]
[1734991182935,0.053226,94067.0,94058.0,0.3815892]
[1734991182936,0.05323,94059.0,94058.0,0.3815892]
[1734991183217,0.053239,94044.0,94043.0,0.43695329]
[1734991183423,0.414039,94044.0,94043.0,0.43555329]
[1734991183921,0.414039,94044.0,94035.0,0.50173593]
[1734991183922,0.053243,94037.0,94035.0,0.50173593]
[1734991184114,0.3608,94036.0,94035.0,0.50033593]
[1734991184517,0.3608,94036.0,94029.0,0.0014]
[1734991184716,0.05325,94025.0,94024.0,0.01264339]
[1734991184919,0.3608,94031.0,94015.0,0.053255]
[1734991185117,0.3608,94019.0,94016.0,0.053255]
[1734991185924,0.3608,94019.0,94011.0,0.053258]
[1734991186119,0.3608,94019.0,94010.0,0.06845804]
[1734991186329,0.3608,94019.0,94016.0,0.002]
[1734991186518,0.053254,94018.0,94016.0,0.002]
[1734991187223,0.14845933,94018.0,94011.0,0.003]
[1734991187622,0.09520533,94018.0,94011.0,0.003]
[1734991188017,0.09520533,94018.0,94011.0,0.008]
[1734991188821,0.3608,94019.0,94016.0,0.001]
[1734991189324,0.3608,94019.0,94011.0,0.005]
[1734991189523,0.3608,94019.0,94011.0,0.007]
[1734991189719,0.414054,94019.0,94011.0,0.007]
[1734991190024,0.414054,94019.0,94011.0,0.002]
[1734991190221,0.3608,94019.0,94016.0,0.001]
[1734991190428,0.053254,94017.0,94016.0,0.001]
[1734991191126,0.3608,94019.0,94009.0,0.05787156]
[1734991191316,0.053256,94015.0,94009.0,0.05787156]
[1734991191516,0.3608,94019.0,94009.0,0.05787156]
[1734991191819,0.053255,94017.0,94016.0,0.001]
[1734991193220,0.053255,94017.0,94009.0,0.06087156]
[1734991193425,0.053255,94017.0,94016.0,0.001]
[1734991194813,0.053255,94017.0,94009.0,0.05787156]
[1734991195022,0.053255,94017.0,94009.0,0.05987156]
[1734991195925,0.053255,94017.0,94009.0,0.05787156]
[1734991196123,0.053255,94017.0,94016.0,0.001]
[1734991197423,0.054255,94017.0,94016.0,0.001]
[1734991197822,0.053255,94017.0,94016.0,0.001]
[1734991198126,0.053257,94012.0,94009.0,0.05987156]
[1734991198321,0.3608,94011.0,94009.0,0.05987156]
[1734991198523,0.414058,94011.0,94009.0,0.05987156]
[1734991199119,0.414058,94011.0,94009.0,0.05787156]
[1734991199830,0.414058,94011.0,94009.0,0.05887156]
[1734991200325,0.414058,94011.0,94009.0,0.05987156]
[1734991201114,0.414058,94011.0,94002.0,0.1094]
[1734991201522,0.3608,94011.0,94002.0,0.1094]
[1734991201724,0.12694044,94024.0,94004.0,0.7216]
[1734991201919,0.12694044,94024.0,94019.0,0.053253]
[1734991202129,0.12694044,94024.0,94018.0,0.3608]
[1734991202424,0.12694044,94024.0,94021.0,0.053252]
[1734991202624,0.15799376,94033.0,94023.0,0.053251]
[1734991202927,0.12630253,94042.0,94032.0,0.3608]
[1734991203119,0.12630253,94042.0,94033.0,0.1155]
[1734991203120,0.17954353,94042.0,94033.0,0.1155]
[1734991203320,0.17954353,94042.0,94033.0,0.4763]
[1734991203521,0.17954353,94042.0,94033.0,0.1155]
[1734991203724,0.12630253,94042.0,94033.0,0.168745]
[1734991203930,0.12630253,94042.0,94035.0,0.053244]
[1734991204121,0.053248,94028.0,94027.0,0.01251122]
[1734991204322,0.3608,94028.0,94012.0,0.053257]
[1734991204719,0.3608,94028.0,94007.0,0.47774]
[1734991204929,0.3608,94028.0,94007.0,0.4763]
[1734991205229,0.053252,94022.0,94010.0,0.08920004]
[1734991205436,0.053249,94027.0,94010.0,0.08920004]
[1734991205816,0.053249,94027.0,94015.0,0.053256]
[1734991206220,0.3608,94028.0,94017.0,0.08920004]
[1734991206430,0.3608,94028.0,94020.0,0.053253]
[1734991206724,0.3608,94037.0,94017.0,0.08920004]
[1734991206931,0.3608,94037.0,94016.0,0.3608]
[1734991206932,0.3608,94037.0,94027.0,0.08920004]
[1734991207123,0.3608,94037.0,94028.0,0.1164]
[1734991207723,0.3608,94037.0,94030.0,0.053247]
[1734991208027,0.3608,94051.0,94036.0,0.3608]
[1734991208028,0.053238,94046.0,94036.0,0.3608]
[1734991208228,0.053238,94046.0,94037.0,0.1083]
[1734991208627,0.05324,94043.0,94037.0,0.1083]
[1734991210434,0.414036,94051.0,94037.0,0.1083]
[1734991210735,0.001,94043.0,94038.0,0.116]
[1734991211123,0.001,94043.0,94038.0,0.042]
[1734991211427,0.053236,94050.0,94038.0,0.042]
[1734991211629,0.4766,94064.0,94040.0,0.08920004]
[1734991211630,0.053232,94057.0,94040.0,0.08920004]
[1734991211931,0.4766,94064.0,94038.0,0.042]
[1734991211932,0.414028,94064.0,94050.0,0.08920004]
[1734991212325,0.414028,94064.0,94051.0,0.1115]
[1734991212525,0.053228,94064.0,94056.0,0.3608]
[1734991213733,0.053225,94070.0,94056.0,0.3608]
[1734991213922,0.001,94064.0,94056.0,0.3608]
[1734991214125,0.001,94064.0,94051.0,0.1115]
[1734991214325,0.001,94064.0,94044.0,0.3608]
[1734991214326,0.3608,94055.0,94044.0,0.3608]
[1734991214525,0.053241,94041.0,94030.0,0.51874278]
[1734991214745,0.053241,94041.0,94030.0,0.52014278]
[1734991215231,0.053242,94039.0,94037.0,0.01914623]
[1734991215430,0.3608,94038.0,94030.0,0.31944274]
[1734991215631,0.053247,94031.0,94030.0,0.31804274]
[1734991215831,0.3608,94038.0,94030.0,0.01959864]
[1734991215832,0.414043,94038.0,94030.0,0.01959864]
[1734991216031,0.414043,94038.0,94021.0,0.2301]
[1734991216236,0.3608,94030.0,94028.0,0.01520004]
[1734991216442,0.3608,94030.0,94021.0,0.283352]
[1734991216934,0.3608,94030.0,94021.0,0.2301]
[1734991217723,0.3608,94030.0,94021.0,0.2351]
[1734991217931,0.053251,94023.0,94021.0,0.25462682]
[1734991218236,0.053251,94023.0,94021.0,0.13422682]
[1734991218439,0.053251,94023.0,94021.0,0.13522682]
[1734991218938,0.053251,94023.0,94021.0,0.02252682]
[1734991219132,0.3608,94022.0,94021.0,0.02252682]
[1734991219937,0.3608,94022.0,94021.0,0.02152682]
[1734991220335,0.053249,94028.0,94021.0,0.02152682]
[1734991220530,0.001,94023.0,94022.0,0.1154]
[1734991220929,0.053249,94028.0,94022.0,0.1154]
[1734991221240,0.053249,94028.0,94022.0,0.0414]
[1734991221630,0.003,94023.0,94022.0,0.0414]
[1734991223239,0.004,94028.0,94022.0,0.0414]
[1734991223439,0.004,94028.0,94026.0,0.053249]
[1734991223636,0.004,94028.0,94027.0,0.1092]
[1734991223832,0.3608,94042.0,94027.0,0.1092]
[1734991224039,0.55140342,94050.0,94036.0,0.3608]
[1734991224241,0.55140342,94050.0,94039.0,0.053242]
[1734991224443,0.55140342,94050.0,94041.0,0.053241]
[1734991225050,0.002,94042.0,94041.0,0.053241]
[1734991225935,0.002,94042.0,94036.0,0.3608]
[1734991226136,0.002,94042.0,94036.0,0.2868]
[1734991226541,0.3658,94050.0,94041.0,0.001]
[1734991226936,0.3618,94050.0,94036.0,0.30568015]
[1734991227137,0.004,94042.0,94036.0,0.30568015]
[1734991227346,0.005,94042.0,94036.0,0.30568015]
[1734991227544,0.001,94042.0,94036.0,0.30568015]
[1734991227749,0.001,94042.0,94041.0,0.001]
[1734991228244,0.05324,94044.0,94041.0,0.001]
[1734991228641,0.419036,94050.0,94041.0,0.001]
[1734991228841,0.3658,94050.0,94046.0,0.053238]
[1734991229045,0.3658,94050.0,94047.0,0.053237]
[1734991229242,0.3658,94050.0,94048.0,0.1156]
[1734991229549,0.19060342,94061.0,94049.0,0.053236]
[1734991229746,0.19060342,94061.0,94054.0,0.3608]
[1734991230538,0.053226,94068.0,94054.0,0.3608]
[1734991230733,0.004,94061.0,94054.0,0.3608]
[1734991231143,0.004,94061.0,94054.0,0.2868]
[1734991231339,0.004,94061.0,94054.0,0.001]
[1734991232555,0.005,94061.0,94054.0,0.001]
[1734991232844,0.005,94061.0,94059.0,0.053231]
[1734991233952,0.004,94061.0,94059.0,0.053231]
[1734991235954,0.004,94061.0,94053.0,0.3608]
[1734991236151,0.053236,94050.0,94049.0,0.1148]
[1734991236354,0.053236,94050.0,94049.0,0.0408]
[1734991236657,0.3608,94052.0,94036.0,0.31804274]
[1734991236845,0.3608,94040.0,94036.0,0.31804274]
[1734991237047,0.053243,94038.0,94036.0,0.3376429]
[1734991237246,0.053243,94038.0,94036.0,0.01960016]
[1734991237455,0.053245,94034.0,94018.0,0.053254]
[1734991237647,0.3608,94040.0,94018.0,0.053254]
[1734991237648,0.3608,94027.0,94018.0,0.053254]
[1734991239158,0.3608,94031.0,94016.0,0.13547992]
[1734991239455,0.35207001,94031.0,94029.0,0.053248]
[1734991239656,0.1111,94045.0,94022.0,0.053252]
[1734991239847,0.1111,94045.0,94031.0,0.053247]
[1734991240347,0.05324,94044.0,94027.0,0.053249]
[1734991240654,0.05324,94043.0,94026.0,0.05325]
[1734991240859,0.1111,94045.0,94028.0,0.3608]
[1734991241360,0.1111,94045.0,94032.0,0.053246]
[1734991242051,0.1121,94045.0,94032.0,0.053246]
[1734991242965,0.001,94044.0,94032.0,0.053246]
[1734991243457,0.1151,94045.0,94032.0,0.053246]
[1734991243763,0.1141,94045.0,94032.0,0.055246]
[1734991244063,0.1111,94045.0,94032.0,0.059246]
[1734991245562,0.1111,94045.0,94032.0,0.004]
[1734991245752,0.164339,94045.0,94032.0,0.006]
[1734991245949,0.1111,94045.0,94032.0,0.006]
[1734991246146,0.1111,94045.0,94033.0,0.053246]
[1734991246349,0.1111,94045.0,94042.0,0.05324]
[1734991246764,0.1111,94045.0,94032.0,0.02561456]
[1734991246765,0.1111,94045.0,94043.0,0.05324]
[1734991247055,0.3608,94046.0,94044.0,0.053239]
[1734991247262,0.3608,94046.0,94045.0,0.1068]
[1734991248158,0.1095,94056.0,94046.0,0.053238]
[1734991248366,0.1095,94056.0,94051.0,0.053235]
[1734991248862,0.1095,94056.0,94045.0,0.1068]
[1734991249064,0.1095,94056.0,94046.0,0.053238]
[1734991249262,0.3608,94049.0,94045.0,0.1068]
[1734991249557,0.05324,94043.0,94028.0,0.54258444]
[1734991249762,0.3608,94038.0,94037.0,0.25438444]
[1734991251370,0.3608,94038.0,94028.0,0.08009588]
[1734991251555,0.3608,94038.0,94025.0,0.06514788]
[1734991252060,0.3608,94030.0,94025.0,0.08408073]
[1734991252258,0.3608,94030.0,94025.0,0.01893285]
[1734991252259,0.053249,94027.0,94025.0,0.01893285]
[1734991252560,0.3608,94030.0,94009.0,0.32553563]
[1734991252561,0.053253,94020.0,94019.0,0.25438444]
[1734991252768,0.414053,94020.0,94019.0,0.25438444]
[1734991253866,0.414053,94020.0,94009.0,0.00755508]
[1734991254163,0.414053,94020.0,94019.0,0.003]
[1734991254369,0.414053,94020.0,94019.0,0.005]
[1734991254667,0.3608,94020.0,94019.0,0.005]
[1734991255257,0.3608,94020.0,94019.0,0.003]
[1734991257160,0.3608,94020.0,94019.0,0.02190375]
[1734991257764,0.053249,94028.0,94019.0,0.02390375]
[1734991258967,0.3608,94022.0,94019.0,0.02390375]
[1734991261171,0.053253,94021.0,94019.0,0.02390375]
[1734991262767,0.053253,94021.0,94019.0,0.02090375]
[1734991262978,0.053253,94021.0,94019.0,0.02390375]
[1734991263177,0.2212,94020.0,94000.0,0.10012604]
[1734991263375,0.3608,94002.0,94000.0,0.11914899]
[1734991263576,0.1175,94001.0,94000.0,0.11902295]
[1734991264179,0.170764,94001.0,94000.0,0.11902295]
[1734991264479,0.170764,94001.0,94000.0,0.12802295]
[1734991264780,0.1175,94001.0,94000.0,0.13402295]
[1734991265277,0.15830758,94020.0,94017.0,0.053254]
[1734991265471,0.03245598,94020.0,94017.0,0.053254]
[1734991265664,0.03185597,94020.0,94018.0,0.3608]
[1734991266272,0.03185597,94020.0,94018.0,0.2868]
[1734991266477,0.053251,94023.0,94015.0,0.1091]
[1734991266982,0.053251,94023.0,94018.0,0.003]
[1734991267370,0.053251,94023.0,94018.0,0.002]
[1734991268275,0.053252,94021.0,94018.0,0.003]
[1734991268675,0.3608,94027.0,94018.0,0.003]
[1734991268875,0.053252,94023.0,94015.0,0.13273768]
[1734991269075,0.053252,94023.0,94015.0,0.13473768]
[1734991269277,0.3608,94027.0,94015.0,0.13473768]
[1734991269576,0.3608,94027.0,94015.0,0.13273768]
[1734991269775,0.414049,94027.0,94015.0,0.13273768]
[1734991269975,0.05325,94026.0,94015.0,0.13273768]
[1734991270174,0.05325,94026.0,94015.0,0.13473768]
[1734991270880,0.05325,94026.0,94018.0,0.001]
[1734991271271,0.05325,94026.0,94015.0,0.11499268]
[1734991271466,0.3608,94027.0,94015.0,0.11499268]
[1734991271675,0.3608,94027.0,94021.0,0.053252]
[1734991271977,0.3608,94027.0,94015.0,0.11599268]
[1734991272176,0.05325,94026.0,94015.0,0.06073768]
[1734991272482,0.05325,94026.0,94015.0,0.06273768]
[1734991272777,0.3608,94016.0,94015.0,0.02463768]
[1734991273183,0.3608,94016.0,94008.0,0.25438444]
[1734991273184,0.053256,94015.0,94008.0,0.25438444]
[1734991273475,0.053259,94009.0,94008.0,0.25438444]
[1734991273685,0.2301,94015.0,94008.0,0.27865802]
[1734991273875,0.053257,94013.0,94008.0,0.27865802]
[1734991274075,0.053258,94012.0,94008.0,0.02427358]
[1734991274277,0.053258,94012.0,94000.0,0.1]
[1734991274470,0.3608,94001.0,94000.0,0.1]
[1734991275678,0.3608,94001.0,94000.0,0.105]
[1734991275875,0.3608,94001.0,94000.0,0.13477725]
[1734991277487,0.3608,94007.0,94000.0,0.13677725]
[1734991278473,0.3608,94007.0,94000.0,0.13477725]
[1734991278678,0.3608,94007.0,94000.0,0.13177725]
[1734991278876,0.3608,94007.0,94000.0,0.13677725]
[1734991279583,0.053261,94006.0,94000.0,0.13677725]
[1734991280178,0.3608,94007.0,94000.0,0.13677725]
[1734991280582,0.1125,94010.0,94000.0,0.13677725]
[1734991281386,0.1125,94010.0,94000.0,0.13477725]
[1734991281688,0.1125,94010.0,94000.0,0.13677725]
[1734991282194,0.1125,94010.0,94000.0,0.13177725]
[1734991282383,0.1125,94010.0,94000.0,0.13677725]
[1734991282783,0.1125,94010.0,94002.0,0.053263]
[1734991283180,0.36136001,94016.0,94000.0,0.13677725]
[1734991283382,0.3608,94016.0,94006.0,0.08900829]
[1734991283582,0.3608,94016.0,94007.0,0.1172]
[1734991283780,0.3608,94016.0,94015.0,0.053255]
[1734991284392,0.1134,94025.0,94015.0,0.053255]
[1734991284587,0.1134,94025.0,94015.0,0.14226329]
[1734991285294,0.002,94016.0,94015.0,0.14226329]
[1734991285487,0.002,94016.0,94015.0,0.053255]
[1734991285689,0.1134,94025.0,94015.0,0.053255]
[1734991285997,0.1154,94025.0,94015.0,0.053255]
[1734991286293,0.1154,94025.0,94015.0,0.23363944]
[1734991286591,0.3608,94037.0,94027.0,0.053248]
[1734991286890,0.3608,94037.0,94031.0,0.053246]
[1734991287685,0.3608,94037.0,94028.0,0.107]
[1734991287879,0.3608,94037.0,94031.0,0.053246]
[1734991288079,0.1105,94045.0,94030.0,0.3608]
[1734991288388,0.1105,94045.0,94040.0,0.053241]
[1734991288697,0.1105,94045.0,94042.0,0.05324]
[1734991288893,0.1899691,94053.0,94040.0,0.3608]
[1734991289087,0.1899691,94053.0,94043.0,0.08900829]
[1734991289395,0.1098,94066.0,94049.0,0.053236]
[1734991289587,0.1098,94066.0,94050.0,0.08900829]
[1734991290298,0.1098,94066.0,94052.0,0.053234]
[1734991290479,0.053228,94064.0,94050.0,0.08900829]
[1734991290788,0.053228,94064.0,94049.0,0.001]
[1734991290983,0.1098,94066.0,94049.0,0.3618]
[1734991291188,0.1098,94066.0,94049.0,0.341035]
[1734991291488,0.1098,94066.0,94051.0,0.053235]
[1734991292087,0.006,94064.0,94052.0,0.053234]
[1734991292289,0.006,94064.0,94049.0,0.342035]
[1734991292290,0.006,94064.0,94053.0,0.053234]
[1734991293593,0.005,94064.0,94058.0,0.053231]
[1734991293785,0.005,94064.0,94060.0,0.3608]
[1734991294181,0.012,94064.0,94060.0,0.3608]
[1734991294400,0.012,94064.0,94062.0,0.053229]
[1734991294990,0.007,94064.0,94058.0,0.001]
[1734991295288,0.3608,94059.0,94058.0,0.001]
[1734991296288,0.3608,94059.0,94045.0,0.053239]
[1734991296495,0.3608,94059.0,94049.0,0.08900829]
[1734991296697,0.3628,94059.0,94049.0,0.08900829]
[1734991297587,0.3648,94059.0,94049.0,0.08900829]
[1734991298294,0.3618,94059.0,94049.0,0.08900829]
[1734991298988,0.053231,94058.0,94049.0,0.08900829]
[1734991300387,0.053231,94058.0,94044.0,0.08348017]
[1734991300388,0.055231,94058.0,94044.0,0.08348017]
[1734991301302,0.055231,94058.0,94040.0,0.08900829]
[1734991301796,0.053231,94058.0,94040.0,0.08900829]
[1734991302105,0.053231,94058.0,94046.0,0.053238]
[1734991302293,0.36136001,94059.0,94044.0,0.001]
[1734991302602,0.3608,94051.0,94044.0,0.001]
[1734991303295,0.3608,94059.0,94044.0,0.001]
[1734991303500,0.3608,94059.0,94049.0,0.08900829]
[1734991304799,0.002,94059.0,94053.0,0.053234]
[1734991304996,0.002,94059.0,94052.0,0.3608]
[1734991305192,0.002,94059.0,94055.0,0.053233]
[1734991305499,0.002,94059.0,94057.0,0.053232]
[1734991305692,0.002,94059.0,94052.0,0.3608]
[1734991306094,0.003,94059.0,94055.0,0.053233]
[1734991306401,0.003,94059.0,94052.0,0.340033]
[1734991306599,0.005,94059.0,94052.0,0.340033]
[1734991307003,0.001,94059.0,94058.0,0.053232]
[1734991307201,0.004,94059.0,94058.0,0.053232]
[1734991308103,0.001,94059.0,94058.0,0.053232]
[1734991308305,0.007,94059.0,94058.0,0.053232]
[1734991308504,0.007,94059.0,94053.0,0.053234]
[1734991308894,0.007,94059.0,94053.0,0.08383276]
[1734991309098,0.007,94059.0,94054.0,0.053234]
[1734991309298,0.007,94059.0,94056.0,0.053232]
[1734991309600,0.005,94059.0,94058.0,0.053232]
[1734991309810,0.3608,94073.0,94064.0,0.053228]
[1734991310199,0.3608,94073.0,94072.0,0.053224]
[1734991311094,0.15787232,94090.0,94081.0,0.053218]
[1734991311294,0.15787232,94090.0,94072.0,0.3608]
[1734991311509,0.15787232,94090.0,94080.0,0.08900829]
[1734991311803,0.15787232,94090.0,94085.0,0.053216]
[1734991312403,0.15787232,94090.0,94081.0,0.109]
[1734991312404,0.16087232,94090.0,94081.0,0.109]
[1734991312711,0.003,94090.0,94086.0,0.053216]
[1734991313004,0.001,94090.0,94086.0,0.053216]
[1734991313204,0.005,94090.0,94086.0,0.053216]
[1734991313907,0.005,94090.0,94081.0,0.162218]
[1734991314205,0.01831347,94099.0,94098.0,0.053209]
[1734991314507,0.15824718,94107.0,94089.0,0.50302229]
[1734991314701,0.15824718,94107.0,94105.0,0.053205]
[1734991314899,0.15824718,94107.0,94098.0,0.3608]
[1734991315407,0.003,94099.0,94098.0,0.3608]
[1734991316008,0.004,94099.0,94098.0,0.3608]
[1734991316203,0.004,94099.0,94098.0,0.2868]
[1734991316702,0.001,94099.0,94098.0,0.2868]
[1734991317910,0.001,94099.0,94098.0,0.31708986]
[1734991318299,0.004,94099.0,94098.0,0.31708986]
[1734991319705,0.004,94099.0,94098.0,0.03028986]
[1734991319909,0.004,94099.0,94090.0,0.08900829]
[1734991320605,0.05321,94098.0,94090.0,0.08900829]
[1734991321311,0.3608,94091.0,94090.0,0.03058878]
[1734991321511,0.3608,94091.0,94081.0,0.035]
[1734991322010,0.053217,94085.0,94080.0,0.08900829]
[1734991322201,0.3608,94082.0,94080.0,0.08900829]
[1734991322399,0.3608,94082.0,94080.0,0.03002939]
[1734991322605,0.3608,94082.0,94060.0,0.08900829]
[1734991322903,0.3608,94066.0,94060.0,0.08900829]
[1734991324512,0.3608,94066.0,94060.0,0.09800829]
[1734991324712,0.3608,94066.0,94062.0,0.05323]
[1734991324907,0.3608,94066.0,94060.0,0.12761192]
[1734991325809,0.3608,94066.0,94060.0,0.02960363]
[1734991326004,0.053229,94064.0,94062.0,0.009]
[1734991326401,0.053231,94061.0,94060.0,0.005]
[1734991326609,0.053231,94061.0,94060.0,0.014]
[1734991327101,0.053231,94061.0,94060.0,0.005]
[1734991327608,0.053233,94057.0,94053.0,0.02948285]
[1734991327912,0.3608,94054.0,94047.0,0.08900829]